[Event "83rd ESP-ch Women-ch 2018"]
[Site "Linares"]
[Date "2018.08.26"]
[Round "7"]
[White "Moral Garcia, Serafin"]
[Black "Kolotilina, Liudmila"]
[Result "0-1"]
[ECO "B29"]
[WhiteElo "2287"]
[BlackElo "2216"]
[Annotator "NA"]
[PlyCount "104"]
[EventDate "2018.08.09"]
[EventType "tourn"]
[EventCountry "ESP"]
[SourceTitle "playchess.com"]
[Source "ChessBase"]
[SourceQuality "1"]
[TimeControl "40/5400+30:1800+30"]

1. e4 {[%emt 0:00:00]} c5 {[%emt 0:00:00]} 2. Nf3 {[%emt 0:00:08]} Nf6 {[%emt 0:00:00]} 3. Nc3 {[%emt 0:00:58]} d5 {[%emt 0:00:08]} 4. exd5 {[%emt 0:00:57]} Nxd5 {[%emt 0:00:05]} 5. Bb5+ {[%emt 0:02:25]} Bd7 {[%emt 0:00:16]} 6. Ne5 {[%emt 0:04:15]} Nf6 {[%emt 0:00:25] B29: Sicilian: 2 Nf3 Nf6 (Nimzowitsch Variation)} (6... Bxb5 7. Qf3 f6 8. Nxb5 Na6 9. Qh5+ g6 10. Nxg6 hxg6 11. Qxh8 Qd7 12. Nc3 Nab4 13. O-O Nxc2 14. Rb1 {½-½ (54) Caruana,F (2816)-Mamedyarov,S (2808) Leuven 2018}) 7. Bc4 {[%emt 0:10:48]} e6 {[%emt 0:00:29]} 8. O-O {[%emt 0:01:09]} Nc6 {[%emt 0:02:27]} 9. Nxc6 {[%emt 0:02:52]} Bxc6 {[%emt 0:01:08]} 10. d3 {[%emt 0:00:35]} Bd6 $146 {[%emt 0:08:12]} ({Predecessor:} 10... Be7 11. Bf4 O-O 12. Bb5 Nd5 13. Bxc6 Nxc3 14. bxc3 bxc6 {½-½ (55) Deysenroth,P (1009)-Weiss,M (1448) Dortmund 2007}) 11. Qe2 {[%emt 0:03:46]} Qc7 {[%emt 0:02:01]} 12. h3 {[%emt 0:01:46]} a6 {[%emt 0:03:27]} 13. a4 {[%emt 0:01:05]} O-O-O {[%emt 0:02:12]} 14. Ne4 {[%emt 0:04:45]} Be7 {[%emt 0:12:57]} 15. Ng5 {[%emt 0:02:49]} Be8 {[%emt 0:02:55]} 16. Nf3 {[%emt 0:06:08]} Nd5 {[%emt 0:08:20]} 17. Bg5 {[%emt 0:07:46]} Kb8 {[%emt 0:00:14]} 18. Bxe7 {[%emt 0:00:22]} Nxe7 {[%emt 0:00:20]} 19. Qe5 {[%emt 0:02:12]} Qxe5 {[%emt 0:05:03]} 20. Nxe5 {[%emt 0:00:17]} f6 {[%emt 0:00:56]} 21. Ng4 {[%emt 0:00:49]} e5 {[%emt 0:00:49]} 22. f4 {[%emt 0:02:02]} (22. Ne3 $11) 22... exf4 {[%emt 0:02:33]} 23. Rxf4 {[%emt 0:00:07]} Nc6 {[%emt 0:11:42]} 24. Ne3 {[%emt 0:01:34]} Nd4 {[%emt 0:01:40]} 25. Rf2 {[%emt 0:01:39]} Bg6 {[%emt 0:00:35]} 26. Rd2 {[%emt 0:04:59]} Rhe8 {[%emt 0:03:24]} 27. Kf2 {[%emt 0:00:31]} Re5 {[%emt 0:01:18]} 28. c3 {[%emt 0:05:17]} Nc6 {[%emt 0:02:38]} 29. a5 {[%emt 0:01:06]} (29. Rad1 $11) 29... Bh5 {[%emt 0:04:00]} 30. Nc2 {[%emt 0:05:04]} Re7 {[%emt 0:09:31]} 31. d4 {[%emt 0:03:16]} cxd4 {[%emt 0:01:50]} 32. Nxd4 {[%emt 0:00:26]} Nxd4 {[%emt 0:00:15]} 33. Rxd4 {[%emt 0:02:55]} Rxd4 {[%emt 0:00:07]} 34. cxd4 {[%emt 0:00:00]} Re4 {[%emt 0:00:59]} 35. Re1 {[%emt 0:01:12]} Rxd4 {[%emt 0:00:42]} 36. Bg8 {[%emt 0:00:02]} Rd2+ {[%emt 0:02:23]} 37. Kg3 {[%emt 0:01:49]} Rxb2 {[%emt 0:00:27]} 38. Re7 {[%emt 0:00:15]} Rb5 {[%emt 0:00:52]} 39. Bxh7 {[%emt 0:01:14]} Rxa5 {[%emt 0:03:20]} 40. Be4 {[%emt 0:01:51]} Rb5 {[%emt 0:01:40]} 41. Kh4 {[%emt 0:31:12]} Bd1 $19 {[%emt 0:31:21]} 42. Rxg7 {[%emt 0:00:27]} Rb4 {[%emt 0:00:56]} 43. g4 Rxe4 {[%emt 0:00:07]} 44. Rf7 {[%emt 0:01:05]} Re6 {[%emt 0:00:10]} 45. Kg3 {[%emt 0:00:17]} a5 {[%emt 0:00:45]} 46. h4 {[%emt 0:00:07]} a4 {[%emt 0:00:21]} 47. Rd7 {[%emt 0:00:17]} Bc2 {[%emt 0:00:11]} 48. Rd2 {[%emt 0:00:08]} Rc6 {[%emt 0:00:15]} 49. Rd8+ {[%emt 0:00:20]} Ka7 {[%emt 0:00:10]} 50. Rd5 {[%emt 0:00:17]} a3 {[%emt 0:00:22]} 51. Ra5+ {[%emt 0:00:07]} Ra6 {[%emt 0:00:01]} 52. Rc5 {[%emt 0:00:04]} Bb1 {[%emt 0:00:26]} 0-1

[Event "83rd ESP-ch Women-ch 2018"]
[Site "Linares"]
[Date "2018.08.26"]
[Round "7"]
[White "Tudela Corbalan, Carlos"]
[Black "Vega Gutierrez, Sabrina Neide"]
[Result "0-1"]
[ECO "A28"]
[WhiteElo "2246"]
[BlackElo "2390"]
[Annotator "NA"]
[PlyCount "40"]
[EventDate "2018.08.09"]
[EventType "tourn"]
[EventCountry "ESP"]
[SourceTitle "playchess.com"]
[Source "ChessBase"]
[SourceQuality "1"]
[TimeControl "40/5400+30:1800+30"]

1. c4 {[%emt 0:00:00]} e5 {[%emt 0:00:00]} 2. Nc3 {[%emt 0:00:33]} Nf6 {[%emt 0:00:00]} 3. e3 {[%emt 0:04:40]} Nc6 {[%emt 0:10:30]} 4. Nf3 {[%emt 0:05:46]} Bb4 {[%emt 0:02:13]} 5. d4 {[%emt 0:09:48]} e4 {[%emt 0:08:02]} 6. Nd2 {[%emt 0:01:11]} Bxc3 {[%emt 0:00:14]} 7. bxc3 {[%emt 0:00:21]} d6 {[%emt 0:00:21]} 8. Be2 {[%emt 0:01:02]} O-O {[%emt 0:01:41]} 9. O-O {[%emt 0:00:14]} Re8 {[%emt 0:01:50]} 10. Nb3 {[%emt 0:02:19] A28: English Opening: Four Knights Variation} Ne7 {[%emt 0:02:53]} 11. c5 {[%emt 0:01:18]} d5 {[%emt 0:01:06]} 12. c4 {[%emt 0:01:18]} Nf5 $146 {[%emt 0:10:33]} ({Predecessor:} 12... Be6 13. Na5 b6 14. cxb6 axb6 15. cxd5 Nfxd5 16. Nc4 Nc3 17. Qc2 Nxe2+ 18. Qxe2 {0-1 (29) Avelar,W-Geenen,M (2325) Thessaloniki 1988}) 13. Bd2 {[%emt 0:03:45]} Nh4 {[%emt 0:07:39]} 14. Rb1 {[%emt 0:03:48]} dxc4 {[%emt 0:03:36]} 15. Na5 {[%emt 0:03:12]} Qd5 {[%emt 0:08:33]} 16. Kh1 {[%emt 0:04:10]} Qg5 {[%emt 0:09:02]} 17. Rg1 {[%emt 0:14:20]} Ng4 {[%emt 0:00:38]} 18. Be1 {[%emt 0:18:27]} Nxh2 {[%emt 0:03:50]} 19. f4 {[%emt 0:13:30]} Qh6 {[%emt 0:00:36]} 20. g4 {[%emt 0:05:32]} Nxg4 {[%emt 0:04:51]} 0-1

[Event "83rd ESP-ch Women-ch 2018"]
[Site "Linares"]
[Date "2018.08.26"]
[Round "7"]
[White "Silva Rodriguez, Fernando"]
[Black "Lopez Varela, Pablo"]
[Result "1/2-1/2"]
[ECO "B07"]
[WhiteElo "2239"]
[BlackElo "2100"]
[Annotator "NA"]
[PlyCount "67"]
[EventDate "2018.08.09"]
[EventType "tourn"]
[EventCountry "ESP"]
[SourceTitle "playchess.com"]
[Source "ChessBase"]
[SourceQuality "1"]
[TimeControl "40/5400+30:1800+30"]

1. e4 {[%emt 0:00:00]} d6 {[%emt 0:00:00]} 2. d4 {[%emt 0:00:00]} Nf6 {[%emt 0:00:00]} 3. Nc3 {[%emt 0:00:00]} Nbd7 {[%emt 0:00:00]} 4. Nf3 {[%emt 0:00:07]} e5 {[%emt 0:00:00]} 5. Bc4 {[%emt 0:00:11]} Be7 {[%emt 0:00:00]} 6. O-O {[%emt 0:00:28]} O-O {[%emt 0:00:03]} 7. a4 {[%emt 0:00:20]} c6 {[%emt 0:00:16]} 8. h3 {[%emt 0:00:12]} h6 {[%emt 0:00:10]} 9. Re1 {[%emt 0:01:33]} Qc7 {[%emt 0:00:11]} 10. Ba2 {[%emt 0:05:28] C41: Philidor Defence} Re8 {[%emt 0:02:02]} 11. Be3 {[%emt 0:02:51]} Nf8 {[%emt 0:02:06]} 12. a5 {[%emt 0:25:26]} (12. Qd2 Be6 13. d5 Bd7 14. Rad1 c5 15. Nxe5 dxe5 16. d6 Bxd6 17. Qxd6 Qxd6 18. Rxd6 Be6 19. Bxc5 Bxa2 20. Nxa2 {0-1 (72) Sanal,V (2551)-Fedoseev,V (2718) Riadh 2017}) 12... Be6 {[%emt 0:16:05]} 13. d5 {[%emt 0:06:57]} Bd7 $146 {[%emt 0:00:29]} ({Predecessor:} 13... cxd5 14. exd5 Bd7 15. Bb3 Ng6 16. Qe2 Nh7 17. Nb5 {1-0 (54) Vega Gutierrez,B (2255)-Cruz Gomez,I (1973) Las Palmas 2011}) 14. Qd3 {[%emt 0:10:19]} c5 {[%emt 0:04:50]} 15. Bc4 {[%emt 0:01:10]} Ng6 {[%emt 0:03:28]} 16. Reb1 {[%emt 0:03:20]} Nh5 {[%emt 0:07:03]} 17. Ne2 {[%emt 0:03:14]} f5 {[%emt 0:22:50]} (17... Qc8 $11 {bleibt in der Remisbreite.}) 18. exf5 {[%emt 0:02:56]} Bf6 {[%emt 0:00:21]} 19. Nd2 {[%emt 0:08:32]} e4 {[%emt 0:00:11]} 20. Nxe4 {[%emt 0:00:28]} Ne5 {[%emt 0:00:09]} 21. Nxf6+ {[%emt 0:01:52]} Nxf6 {[%emt 0:00:03]} 22. Qb3 {[%emt 0:00:56]} Bxf5 {[%emt 0:03:31]} 23. Ng3 {[%emt 0:00:30]} Bg6 {[%emt 0:00:34]} 24. Re1 {[%emt 0:02:10]} Nxc4 {[%emt 0:01:50]} 25. Qxc4 {[%emt 0:00:51]} Bf7 {[%emt 0:00:14]} (25... Qf7 $14) 26. Bd2 {[%emt 0:07:39]} (26. Qh4 $16) 26... Nxd5 {[%emt 0:04:44]} 27. Qg4 {[%emt 0:00:16]} Nf6 {[%emt 0:00:41]} 28. Qh4 {[%emt 0:00:22]} Rxe1+ $11 {[%emt 0:08:51]} 29. Rxe1 {[%emt 0:00:06]} Re8 {[%emt 0:00:02]} 30. Rxe8+ {[%emt 0:02:25]} Nxe8 {[%emt 0:02:15]} 31. c4 {[%emt 0:01:21]} Qd7 {[%emt 0:01:46]} 32. b3 {[%emt 0:02:52]} Qe6 {[%emt 0:05:04]} 33. Qf4 {[%emt 0:01:45]} Bg6 {[%emt 0:02:41]} 34. Qf3 {[%emt 0:00:21]} 1/2-1/2

[Event "83rd ESP-ch Women-ch 2018"]
[Site "Linares"]
[Date "2018.08.26"]
[Round "7"]
[White "Alvarez Serrano, Carlos"]
[Black "Vergara Anton, Diego"]
[Result "0-1"]
[ECO "D37"]
[WhiteElo "2225"]
[BlackElo "2022"]
[Annotator "NA"]
[PlyCount "140"]
[EventDate "2018.08.09"]
[EventType "tourn"]
[EventCountry "ESP"]
[SourceTitle "playchess.com"]
[Source "ChessBase"]
[SourceQuality "1"]
[TimeControl "40/5400+30:1800+30"]

1. d4 {[%emt 0:00:00]} d5 {[%emt 0:00:00]} 2. c4 {[%emt 0:00:26]} e6 {[%emt 0:00:06]} 3. Nf3 {[%emt 0:00:32]} Nf6 {[%emt 0:00:08]} 4. Nc3 {[%emt 0:00:08]} Be7 {[%emt 0:01:01]} 5. cxd5 {[%emt 0:01:10]} exd5 {[%emt 0:00:23]} 6. Bg5 {[%emt 0:01:23]} O-O {[%emt 0:01:18]} 7. Qc2 {[%emt 0:00:06]} c6 {[%emt 0:00:33]} 8. e3 {[%emt 0:00:05]} Nbd7 {[%emt 0:01:28]} 9. Bd3 {[%emt 0:00:11]} h6 {[%emt 0:00:17]} 10. Bh4 {[%emt 0:02:19]} Ne8 {[%emt 0:04:47]} 11. Bg3 {[%emt 0:01:28] D36: Queen's Gambit Declined: Exchange Variation: Main line (5 Bg5 c6 6 Qc2)} Nb6 {[%emt 0:05:07]} (11... Bd6 12. O-O-O Ndf6 13. Ne5 Be6 14. f4 Rc8 15. Kb1 c5 16. dxc5 Bxc5 17. f5 Bd7 18. Nxd7 Qxd7 {1-0 (53) Panjwani,R (2459)-Song,E (2352) Budapest 2018}) 12. O-O {[%emt 0:00:37]} a5 $146 {[%emt 0:01:34]} ({Predecessor:} 12... Nd6 13. Ne5 Nbc4 14. e4 Nxe5 15. dxe5 Nxe4 16. Nxe4 dxe4 17. Bxe4 {1-0 (58) Gouloutis,N (2068)-Stamoulas,N (1912) Thessaloniki 2014}) 13. Ne5 {[%emt 0:04:21]} Nd6 {[%emt 0:02:49]} 14. b3 {[%emt 0:00:27]} Bd7 {[%emt 0:09:25]} 15. a3 {[%emt 0:05:01]} Qc8 {[%emt 0:07:09]} 16. f3 {[%emt 0:00:18]} Bf5 {[%emt 0:13:10]} 17. e4 {[%emt 0:00:44]} dxe4 {[%emt 0:03:49]} 18. fxe4 {[%emt 0:00:21]} Bh7 {[%emt 0:00:17]} 19. Nc4 {[%emt 0:02:35]} Ndxc4 {[%emt 0:06:28]} 20. bxc4 {[%emt 0:00:47]} Qd7 {[%emt 0:04:46]} 21. Bf2 {[%emt 0:00:50]} Rad8 {[%emt 0:04:08]} 22. d5 {[%emt 0:00:58]} Nc8 {[%emt 0:00:37]} 23. e5 {[%emt 0:00:41]} Bxd3 {[%emt 0:01:54]} 24. Qxd3 {[%emt 0:00:02]} cxd5 {[%emt 0:04:18]} 25. cxd5 {[%emt 0:00:53]} f6 {[%emt 0:00:15]} 26. Qc4 {[%emt 0:00:16]} Kh8 {[%emt 0:04:12]} (26... b5 $16 {was necessary.} 27. Qa2 (27. Qxb5 Qxb5 28. Nxb5 Rxd5 $11) 27... Kh8) 27. d6 {[%emt 0:00:35]} Nxd6 {[%emt 0:00:18]} 28. exd6 {[%emt 0:00:07]} Bxd6 {[%emt 0:00:07]} 29. Rad1 {[%emt 0:01:08]} Qe8 {[%emt 0:03:48]} 30. Rfe1 {[%emt 0:08:03]} Qh5 {[%emt 0:00:46]} 31. Rxd6 {[%emt 0:00:16]} Rxd6 {[%emt 0:00:13]} 32. Qc5 {[%emt 0:00:02]} Qxc5 {[%emt 0:04:36]} 33. Bxc5 {[%emt 0:00:02]} Rfd8 {[%emt 0:01:40]} 34. Bxd6 {[%emt 0:00:06]} Rxd6 {[%emt 0:00:33]} 35. Nb5 {[%emt 0:00:10]} Rd3 {[%emt 0:00:32]} 36. Re7 {[%emt 0:00:11]} b6 {[%emt 0:01:26]} 37. Re6 {[%emt 0:00:24]} Rd1+ {[%emt 0:00:26]} 38. Kf2 {[%emt 0:00:07]} Rd2+ {[%emt 0:00:10]} 39. Kf3 {[%emt 0:00:38]} Rd3+ {[%emt 0:00:17]} 40. Kg4 {[%emt 0:00:36]} h5+ {[%emt 0:00:41]} 41. Kh4 {[%emt 0:30:46]} Kh7 {[%emt 0:33:14]} 42. Rxb6 {[%emt 0:00:06]} Kh6 {[%emt 0:00:21]} 43. g3 {[%emt 0:00:01]} g5+ {[%emt 0:02:12]} 44. Kh3 {[%emt 0:00:02]} Kg6 {[%emt 0:00:48]} 45. Kg2 {[%emt 0:03:05]} Rd2+ {[%emt 0:00:09]} 46. Kg1 {[%emt 0:01:32]} Rd1+ {[%emt 0:00:07]} 47. Kg2 {[%emt 0:00:10]} Rd2+ {[%emt 0:00:05]} 48. Kf1 {[%emt 0:00:04]} Rxh2 {[%emt 0:00:29]} 49. Nd6 {[%emt 0:01:36]} Ra2 {[%emt 0:02:00]} 50. Rb3 {[%emt 0:00:22]} a4 {[%emt 0:01:10]} 51. Re3 {[%emt 0:00:49]} f5 {[%emt 0:00:46]} 52. Re6+ {[%emt 0:00:11]} Kh7 {[%emt 0:00:02]} 53. Nxf5 {[%emt 0:00:35]} Rxa3 {[%emt 0:00:12]} 54. Rh6+ {[%emt 0:00:05]} (54. Ke2 $14) 54... Kg8 {[%emt 0:00:18]} 55. Rxh5 {[%emt 0:00:01]} Rf3+ {[%emt 0:00:10]} 56. Ke2 {[%emt 0:01:17]} Rxf5 {[%emt 0:00:05]} 57. Kd2 {[%emt 0:00:46]} Kg7 {[%emt 0:00:26]} 58. g4 {[%emt 0:00:56]} Ra5 {[%emt 0:00:35]} 59. Kc2 {[%emt 0:00:13]} a3 {[%emt 0:00:58]} 60. Kb1 {[%emt 0:00:12]} a2+ {[%emt 0:00:34]} 61. Ka1 {[%emt 0:00:01]} Kf6 {[%emt 0:00:14]} 62. Rh2 {[%emt 0:00:31]} Ke5 {[%emt 0:00:29]} (62... Ra4 $142 63. Rf2+ Ke6 64. Re2+ Kd5) 63. Rf2 {[%emt 0:00:10]} Ke4 {[%emt 0:00:08]} 64. Rf8 {[%emt 0:00:41]} Kd4 {[%emt 0:01:14]} 65. Rf7 {[%emt 0:05:02]} Re5 {[%emt 0:02:07]} 66. Rf3 {[%emt 0:02:59]} Re4 {[%emt 0:01:15]} 67. Rg3 {[%emt 0:00:10]} Ke5 $19 {[%emt 0:00:22]} 68. Kxa2 {[%emt 0:00:59]} Kf4 {[%emt 0:00:07]} 69. Rg1 {[%emt 0:00:32]} Kf3 {[%emt 0:00:10]} 70. Kb1 {[%emt 0:00:21]} Kf2 {[%emt 0:01:38]} 0-1

[Event "83rd ESP-ch Women-ch 2018"]
[Site "Linares"]
[Date "2018.08.26"]
[Round "7"]
[White "Lopez Guerrero, Jose Miguel"]
[Black "Sole Pijuan, Ferran"]
[Result "0-1"]
[ECO "C60"]
[WhiteElo "2148"]
[BlackElo "2320"]
[Annotator "NA"]
[PlyCount "58"]
[EventDate "2018.08.09"]
[EventType "tourn"]
[EventCountry "ESP"]
[SourceTitle "playchess.com"]
[Source "ChessBase"]
[SourceQuality "1"]
[TimeControl "40/5400+30:1800+30"]

1. e4 {[%emt 0:00:00]} e5 {[%emt 0:00:00]} 2. Nf3 {[%emt 0:00:00]} Nc6 {[%emt 0:00:00]} 3. Bb5 {[%emt 0:00:00]} g6 {[%emt 0:00:28]} 4. d3 {[%emt 0:01:53] C60: Ruy Lopez: Unusual Black 3rd moves and 3...g6} (4. c3 a6 5. Ba4 Bg7 6. d4 exd4 7. cxd4 b5 8. Bc2 d6 9. d5 Na5 10. O-O Nc4 11. Nc3 Ne7 12. Bd3 Nb6 13. a4 {0-1 (48) Caruana,F (2816)-Mamedyarov,S (2808) Leuven 2018}) 4... Bg7 {[%emt 0:01:13]} 5. Bg5 {[%emt 0:01:29]} Nge7 {[%emt 0:00:21]} 6. Qd2 {[%emt 0:00:28]} h6 {[%emt 0:08:31]} 7. Bxe7 {[%emt 0:04:07]} Nxe7 {[%emt 0:05:12]} 8. Nc3 {[%emt 0:00:36]} O-O {[%emt 0:00:36]} 9. Bc4 $146 {[%emt 0:00:20]} ({Predecessor:} 9. O-O c6 10. Ba4 d6 11. h3 f5 12. Bb3+ Kh7 {0-1 (35) Duran Barraza,M (1897)-Hernandez,G (2126) Bogota 2014}) 9... c6 {[%emt 0:00:52]} 10. Bb3 {[%emt 0:00:17]} Kh7 {[%emt 0:07:27]} 11. h4 {[%emt 0:00:31]} d5 {[%emt 0:03:52]} 12. O-O-O {[%emt 0:00:24]} d4 {[%emt 0:02:49]} 13. Ne2 {[%emt 0:00:22]} a5 {[%emt 0:00:17]} 14. a3 {[%emt 0:00:45]} b5 {[%emt 0:06:27]} 15. Rdg1 {[%emt 0:05:22]} c5 {[%emt 0:02:51]} 16. g4 {[%emt 0:00:10]} c4 {[%emt 0:01:01]} 17. dxc4 {[%emt 0:01:25]} a4 {[%emt 0:03:05]} 18. Ba2 {[%emt 0:03:23]} Be6 {[%emt 0:00:18]} 19. Qd3 {[%emt 0:00:22]} Qc7 {[%emt 0:01:34]} 20. Ng5+ {[%emt 0:06:40]} hxg5 {[%emt 0:03:29]} 21. hxg5+ {[%emt 0:01:44]} Kg8 {[%emt 0:00:10]} 22. Qh3 {[%emt 0:00:07]} Rfc8 {[%emt 0:06:17]} 23. Kb1 $19 {[%emt 0:04:52]} bxc4 {[%emt 0:05:45]} 24. Ka1 {[%emt 0:00:46]} c3 {[%emt 0:01:56]} 25. Bxe6 {[%emt 0:00:50]} cxb2+ {[%emt 0:00:14]} 26. Kxb2 {[%emt 0:01:30]} Qxc2+ {[%emt 0:02:03]} 27. Ka1 {[%emt 0:00:03]} fxe6 {[%emt 0:00:45]} 28. Rg3 {[%emt 0:01:44]} Rab8 {[%emt 0:02:55]} 29. Qh7+ {[%emt 0:00:17]} Kf8 {[%emt 0:00:07]} 0-1

[Event "83rd ESP-ch Women-ch 2018"]
[Site "Linares"]
[Date "2018.08.26"]
[Round "7"]
[White "Cuevas Fernandez, Jose Alberto"]
[Black "Montero Melendez, Rafael"]
[Result "0-1"]
[ECO "D91"]
[WhiteElo "2147"]
[BlackElo "2367"]
[Annotator "NA"]
[PlyCount "43"]
[EventDate "2018.08.09"]
[EventType "tourn"]
[EventCountry "ESP"]
[SourceTitle "playchess.com"]
[Source "ChessBase"]
[SourceQuality "1"]
[TimeControl "40/5400+30:1800+30"]

1. d4 {[%emt 0:00:00]} Nf6 {[%emt 0:00:00]} 2. Nf3 {[%emt 0:00:00]} g6 {[%emt 0:00:00]} 3. c4 {[%emt 0:00:00]} Bg7 {[%emt 0:00:00]} 4. Nc3 {[%emt 0:00:00]} d5 {[%emt 0:00:00]} 5. Bg5 {[%emt 0:00:00]} Ne4 {[%emt 0:00:00]} 6. Bh4 {[%emt 0:00:00]} c6 {[%emt 0:00:06] D91: Grünfeld: 4 Nf3 Bg7 5 Bg5} (6... Nxc3 7. bxc3 dxc4 8. e3 b5 9. a4 c6 10. Qb1 a6 11. Be2 Nd7 12. O-O Nb6 13. Ne5 Bxe5 14. dxe5 Nxa4 15. Bf3 Nxc3 16. Qb4 Nd5 17. Qc5 Bb7 {1-0 (40) Nakamura,H (2767)-Aronian,L (2797) Saint Louis 2014}) 7. e3 {[%emt 0:00:49]} Qa5 {[%emt 0:00:27]} 8. Bd3 {[%emt 0:08:19]} Nxc3 {[%emt 0:11:11]} 9. Qd2 {[%emt 0:00:09]} dxc4 {[%emt 0:00:26]} 10. Bxc4 {[%emt 0:02:36]} b5 $146 {[%emt 0:00:17]} ({Predecessor:} 10... Qb4 11. Qxc3 Qxc3+ 12. bxc3 Bf5 13. a4 Nd7 {½-½ (21) Wesslen,U-Sterner,J Stockholm 1995}) 11. Be2 {[%emt 0:06:14]} b4 {[%emt 0:01:19]} 12. bxc3 {[%emt 0:00:19]} bxc3 {[%emt 0:00:07]} 13. Qc2 {[%emt 0:00:09]} Bf5 {[%emt 0:03:30]} 14. e4 {[%emt 0:01:47]} Bd7 {[%emt 0:08:51]} 15. O-O {[%emt 0:04:50]} c5 $1 {[%emt 0:01:00]} 16. Qb3 {[%emt 0:01:23]} Nc6 {[%emt 0:02:37]} 17. d5 {[%emt 0:05:19]} Nd4 {[%emt 0:07:31]} 18. Nxd4 {[%emt 0:00:45]} cxd4 {[%emt 0:00:06]} 19. Qb7 {[%emt 0:00:25]} Rc8 $19 {[%emt 0:01:13]} 20. Rab1 {[%emt 0:06:28]} c2 {[%emt 0:02:37]} 21. Rb5 {[%emt 0:02:53]} Qd2 22. Rbb1 0-1

[Event "83rd ESP-ch Women-ch 2018"]
[Site "Linares"]
[Date "2018.08.26"]
[Round "7"]
[White "Gomez Sanjuan, Hector Fernando"]
[Black "Teran Alvarez, Ismael"]
[Result "0-1"]
[ECO "A41"]
[WhiteElo "2146"]
[BlackElo "2377"]
[Annotator "NA"]
[PlyCount "106"]
[EventDate "2018.08.09"]
[EventType "tourn"]
[EventCountry "ESP"]
[SourceTitle "playchess.com"]
[Source "ChessBase"]
[SourceQuality "1"]
[TimeControl "40/5400+30:1800+30"]

1. d4 {[%emt 0:06:01]} d6 {[%emt 0:00:00]} 2. Nf3 {[%emt 0:00:48]} Nf6 {[%emt 0:00:18]} 3. c4 {[%emt 0:00:15]} g6 {[%emt 0:00:31]} 4. Nc3 {[%emt 0:00:11]} Bf5 {[%emt 0:00:30]} 5. Nh4 {[%emt 0:04:16]} Bd7 {[%emt 0:01:33]} 6. e4 {[%emt 0:01:04]} Bg7 {[%emt 0:01:20] E61: King's Indian: Early deviations for White, including Smyslov System} (6... e5 7. dxe5 dxe5 8. Nf3 Nc6 9. Be2 Bg7 10. O-O O-O 11. h3 Be6 12. Be3 Qxd1 13. Rfxd1 Rfd8 14. Nd5 Nxe4 15. Nxc7 Rac8 16. Nxe6 fxe6 17. Bd3 Nf6 18. Ng5 Nb4 19. Bf1 Nc2 20. Nxe6 Rxd1 21. Rxd1 Nxe3 22. fxe3 {½-½ (97) Li,C (2751)-Mamedov,R (2650) Huaian 2016}) 7. Be2 {[%emt 0:01:25]} O-O {[%emt 0:01:15]} 8. O-O {[%emt 0:01:28]} e5 {[%emt 0:05:42]} 9. Nf3 {[%emt 0:00:18]} exd4 {[%emt 0:11:50]} 10. Nxd4 {[%emt 0:00:49] LiveBook: 37 Games} Re8 {[%emt 0:00:03]} 11. f3 {[%emt 0:01:43]} Nc6 {[%emt 0:00:50]} 12. Be3 {[%emt 0:03:02]} Nh5 {[%emt 0:01:12]} 13. Qd2 {[%emt 0:09:37]} Nf4 {[%emt 0:05:42]} 14. Nxc6 {[%emt 0:01:32]} Nxe2+ {[%emt 0:00:09]} 15. Nxe2 {[%emt 0:00:58]} bxc6 {[%emt 0:03:54]} 16. Bd4 $146 {[%emt 0:04:46]} Bxd4+ {[%emt 0:03:09]} 17. Qxd4 {[%emt 0:00:27]} c5 {[%emt 0:00:04]} 18. Qd2 {[%emt 0:01:57]} Be6 {[%emt 0:05:44]} 19. Rac1 {[%emt 0:00:51]} a5 {[%emt 0:15:24]} 20. Rfd1 {[%emt 0:01:22]} Qf6 {[%emt 0:02:19]} 21. Qc3 {[%emt 0:01:26]} Qxc3 {[%emt 0:00:52]} 22. Rxc3 {[%emt 0:00:13]} Reb8 {[%emt 0:00:16]} 23. Rd2 {[%emt 0:05:14]} Rb4 {[%emt 0:00:13]} 24. b3 {[%emt 0:09:48]} a4 {[%emt 0:01:45]} 25. Nf4 {[%emt 0:02:47]} axb3 {[%emt 0:06:09]} 26. axb3 {[%emt 0:00:21]} Kf8 {[%emt 0:10:26]} 27. Nxe6+ {[%emt 0:01:19]} fxe6 {[%emt 0:00:01]} 28. Kf2 {[%emt 0:00:29]} Ra3 {[%emt 0:04:27]} 29. Rb2 {[%emt 0:01:02]} Ke7 {[%emt 0:00:22]} 30. Ke3 {[%emt 0:00:20]} Ra1 {[%emt 0:00:22]} 31. Kf4 {[%emt 0:04:01]} e5+ {[%emt 0:01:41]} 32. Kg5 $1 {[%emt 0:03:02]} Rb8 {[%emt 0:00:53]} 33. Rcc2 {[%emt 0:01:32]} Ra3 {[%emt 0:01:25]} 34. Rc3 {[%emt 0:00:27]} Kf7 {[%emt 0:02:23]} 35. Rd3 {[%emt 0:01:28] [#]} h6+ $1 {[%emt 0:00:22]} 36. Kg4 {[%emt 0:00:44]} Kf6 {[%emt 0:00:24]} 37. h3 {[%emt 0:02:04]} Rb4 {[%emt 0:00:15]} 38. Rc3 {[%emt 0:00:10]} Ra1 {[%emt 0:00:09]} 39. Kh4 {[%emt 0:02:16]} Ke6 {[%emt 0:00:40]} 40. Kg3 {[%emt 0:00:30]} Rb8 {[%emt 0:00:29]} 41. Rcc2 {[%emt 0:31:16]} h5 {[%emt 0:32:33]} 42. Kf2 {[%emt 0:00:54]} h4 {[%emt 0:00:34]} 43. Ke3 {[%emt 0:00:23]} Ra3 {[%emt 0:01:23]} 44. Rc3 {[%emt 0:00:46]} Rb4 {[%emt 0:00:52]} 45. Rd3 {[%emt 0:01:29]} ({White should try} 45. f4) 45... Ra1 {[%emt 0:01:08]} 46. Rc3 {[%emt 0:01:16]} Kf6 {[%emt 0:01:17]} 47. Rcc2 {[%emt 0:13:26]} Kg5 {[%emt 0:00:30]} 48. Kd3 {[%emt 0:00:33]} Kf4 {[%emt 0:00:43]} 49. Kc3 {[%emt 0:00:48]} Ra3 {[%emt 0:00:08]} 50. Rf2 {[%emt 0:00:38]} Rb8 {[%emt 0:00:58]} 51. Rb1 {[%emt 0:00:58]} Kg3 {[%emt 0:00:29]} 52. Rbb2 {[%emt 0:00:07] [#]} Raxb3+ $1 {[%emt 0:00:16]} 53. Rxb3 {[%emt 0:00:29]} Rxb3+ {[%emt 0:00:06] Kd4} 0-1